bitfinex-derivatives/quotes_ETHF0:USTF0_20250807
["timestamp","ask_amount","ask_price","bid_price","bid_amount"]
[1754562280728,0.8279,3789.7,3789.2,1.4224]
[1754562280929,0.8279,3789.6,3789.4,1.95008]
[1754562281125,0.8279,3789.9,3789.7,1.4224]
[1754562281326,2.2796,3789.9,3789.8,1.2879]
[1754562281528,3.0331,3789.9,3789.8,1.2879]
[1754562282128,0.52763,3789.8,3789.7,1.4224]
[1754562282329,3.0331,3789.7,3789.5,2.7103]
[1754562282635,0.8279,3789.4,3789.3,3.1352]
[1754562282842,3.0331,3789.4,3789.3,3.1352]
[1754562283136,3.0331,3789.4,3789.3,4.5576]
[1754562283729,3.0331,3789.4,3789.3,1.8473]
[1754562284234,22.7791,3789.4,3789.3,1.8473]
[1754562285432,4.0357,3789.6,3789.4,0.8296]
[1754562285634,5.0357,3790.0,3789.6,3.5399]
[1754562285838,1.8279,3790.0,3789.6,3.2078]
[1754562286041,1.8279,3790.0,3789.9,2.7103]
[1754562286241,1.8279,3790.0,3789.9,3.5399]
[1754562286439,1.0,3790.0,3789.9,3.5399]
[1754562287143,1.8279,3790.0,3789.9,2.7103]
[1754562287339,4.0331,3790.0,3789.9,2.7103]
[1754562287736,0.52761,3789.9,3789.5,0.8296]
[1754562288041,1.4517,3789.7,3789.3,2.37499]
[1754562288246,0.8279,3789.9,3789.3,1.8473]
[1754562288450,0.8279,3789.9,3789.8,2.7103]
[1754562290441,0.8279,3789.9,3789.8,3.5399]
[1754562290643,1.0,3790.0,3789.9,3.5399]
[1754562291340,38.023,3790.7,3790.5,0.52753]
[1754562291542,19.716,3790.8,3790.3,0.8296]
[1754562291741,21.9956,3790.8,3790.7,2.7103]
[1754562291940,21.9956,3790.8,3789.6,1.31913]
[1754562291941,1.4517,3790.6,3790.0,2.7103]
[1754562292141,1.4517,3790.3,3790.1,1.2879]
[1754562292342,3.589,3790.2,3790.1,1.2879]
[1754562293740,4.11658,3790.2,3790.0,1.4224]
[1754562293942,3.589,3790.1,3790.0,1.4224]
[1754562295149,0.8279,3790.1,3790.0,4.0675]
[1754562295343,0.52755,3790.4,3790.0,4.0675]
[1754562295544,0.8279,3790.3,3790.0,1.3572]
[1754562295744,1.4517,3790.1,3789.9,2.7103]
[1754562295945,2.2796,3790.0,3789.9,2.7103]
[1754562296148,3.2078,3790.6,3789.9,0.8296]
[1754562296450,0.8279,3790.4,3790.3,2.7103]
[1754562296748,2.2796,3790.4,3790.3,2.7103]
[1754562297745,3.589,3790.4,3790.3,1.2879]
[1754562298245,0.8279,3790.5,3790.3,1.2879]
[1754562298441,0.8279,3790.5,3789.8,1.31907]
[1754562298442,2.2796,3790.5,3789.8,0.52761]
[1754562298744,1.3094,3790.1,3789.7,3.2078]
[1754562298950,2.7611,3790.1,3790.0,2.7103]
[1754562299448,3.2078,3790.6,3790.4,0.52753]
[1754562299749,3.2078,3790.6,3790.5,3.561]
[1754562299948,3.2078,3790.6,3790.5,2.7258]
[1754562299949,5.3311,3790.6,3790.5,2.7258]
[1754562300245,0.8757,3790.3,3790.0,1.36279]
[1754562300451,2.3823,3790.3,3790.2,2.7258]
[1754562300650,3.6299,3790.3,3790.2,2.7258]
[1754562300840,2.7542,3790.5,3790.3,2.7258]
[1754562301043,2.7542,3790.4,3789.9,2.7258]
[1754562301242,2.7542,3790.3,3790.0,3.25339]
[1754562301442,2.3823,3790.2,3790.1,2.7258]
[1754562301648,3.6299,3790.2,3790.1,2.7258]
[1754562301851,4.15747,3790.2,3790.1,2.7258]
[1754562302045,3.2078,3790.6,3789.9,1.3215]
[1754562302046,0.52758,3790.1,3789.9,1.3215]
[1754562302249,0.8757,3789.9,3789.7,4.043]
[1754562302553,0.8757,3789.8,3789.7,4.57063]
[1754562302753,0.8757,3789.8,3789.7,4.043]
[1754562302955,3.6299,3789.8,3789.7,4.5293]
[1754562303155,0.8757,3789.8,3789.7,5.9336]
[1754562303360,0.8757,3789.8,3789.7,6.7688]
[1754562304057,0.8757,3790.1,3789.8,3.561]
[1754562304250,0.8757,3790.4,3790.2,0.52756]
[1754562304560,3.6299,3790.2,3789.9,2.7258]
[1754562304743,2.7542,3790.1,3789.8,0.8352]
[1754562304949,3.6299,3790.1,3790.0,2.7258]
[1754562305351,3.6299,3790.1,3790.0,1.3215]
[1754562305553,3.2078,3790.6,3789.8,2.7258]
[1754562305749,3.6299,3789.9,3789.8,3.25342]
[1754562306554,3.6299,3789.9,3789.8,2.7258]
[1754562307555,2.1233,3789.4,3789.3,1.8473]
[1754562307854,3.6299,3789.4,3789.3,1.8473]
[1754562308153,0.8757,3789.4,3789.3,4.5731]
[1754562308352,3.2078,3789.7,3789.3,1.8473]
[1754562308649,1.40335,3789.6,3789.5,2.7258]
[1754562308855,4.15758,3789.4,3789.3,3.1688]
[1754562309052,0.52768,3789.5,3789.4,1.3215]
[1754562309355,3.6299,3789.4,3789.3,4.5731]
[1754562312652,3.6299,3789.4,3789.3,1.8473]
[1754562312851,3.6299,3789.4,3789.3,4.5731]
[1754562313455,2.82599,3788.9,3788.2,1.4043]
[1754562313652,0.52783,3788.4,3788.1,0.8352]
[1754562313853,0.52789,3788.0,3787.9,0.8352]
[1754562314052,0.8757,3787.9,3787.8,3.2078]
[1754562314248,0.52787,3788.1,3787.8,6.7688]
[1754562314560,1.40359,3787.9,3787.8,2.7258]
[1754562314752,3.2078,3788.1,3787.8,2.7258]
[1754562314753,0.8757,3788.6,3788.0,1.4043]
[1754562315056,0.52783,3788.4,3788.3,3.561]
[1754562315254,0.3789,3789.3,3788.6,2.7258]
[1754562315455,0.8757,3789.0,3788.7,2.7258]
[1754562315660,3.2078,3789.5,3788.9,1.3215]
[1754562315661,4.7144,3789.5,3788.9,1.3215]
[1754562315962,4.7144,3789.5,3788.5,4.52729]
[1754562315963,0.52767,3789.5,3789.2,3.561]
[1754562316157,1.40337,3789.5,3789.3,0.8352]
[1754562316354,1.40337,3789.5,3789.4,2.7258]
[1754562316655,0.65885373,3789.7,3789.6,3.561]
[1754562316859,1.18647373,3789.9,3789.7,3.561]
[1754562317163,3.2078,3790.0,3789.9,3.561]
[1754562317348,3.2078,3790.0,3789.9,2.7258]
[1754562317349,4.74204205,3790.0,3789.9,2.7258]
[1754562317655,6.24864205,3790.0,3789.6,1.3215]
[1754562317856,1.8855,3789.6,3789.5,3.2078]
[1754562318054,0.8757,3789.1,3788.8,0.8352]
[1754562318357,0.8757,3789.1,3789.0,3.561]
[1754562318755,3.86634205,3789.2,3789.0,3.561]
[1754562318952,3.2078,3789.2,3789.0,0.8352]
[1754562319149,3.2078,3789.2,3788.8,0.52775]
[1754562319352,3.2078,3789.2,3789.1,0.8352]
[1754562319556,3.2078,3789.2,3789.1,3.561]
[1754562319862,3.2078,3789.6,3789.0,1.4043]
[1754562320064,3.2078,3789.6,3789.2,0.8352]
[1754562320254,3.2078,3789.6,3789.3,0.5277]
[1754562320454,1.40337,3789.5,3789.4,0.8352]
[1754562321162,4.15757,3789.5,3789.4,2.7258]
[1754562321465,0.8757,3789.5,3789.4,2.7258]
[1754562321654,3.73546,3789.6,3789.2,0.8352]
[1754562321853,0.8757,3789.4,3789.3,2.7258]
[1754562322251,0.8757,3789.4,3789.3,3.561]
[1754562322454,3.2078,3789.6,3789.3,3.561]
[1754562322660,4.0835,3789.6,3789.3,3.561]
[1754562322960,4.0835,3789.6,3789.1,1.8474]
[1754562322961,3.2078,3789.6,3789.5,3.561]
[1754562325370,4.0835,3790.0,3789.9,4.0886]
[1754562325657,5.3311,3790.0,3789.9,2.7258]
[1754562325964,9.2563,3790.0,3789.9,4.5945]
[1754562326364,9.2563,3790.0,3789.9,3.273]
[1754562326663,9.2563,3790.0,3789.9,4.5945]
[1754562326967,0.8757,3789.8,3789.1,1.8474]
[1754562327158,2.1233,3788.6,3788.1,1.93216]
[1754562327355,2.7542,3788.4,3788.2,1.4043]
[1754562327652,0.52775,3789.0,3788.6,1.4043]
[1754562327857,3.2078,3789.1,3789.0,1.4043]
[1754562328059,3.2078,3789.1,3789.0,3.561]
[1754562328258,4.0835,3789.1,3789.0,3.561]
[1754562328461,4.0835,3789.1,3789.0,2.7258]
[1754562329160,2.1089,3789.0,3788.4,3.2078]
[1754562329360,3.5605,3788.5,3788.4,2.6848]
[1754562330461,0.8518,3788.5,3788.4,2.6848]
[1754562330771,2.7087,3788.8,3788.4,0.8852]
[1754562330954,3.23646,3788.9,3788.6,2.6848]
[1754562331264,2.7087,3788.7,3788.6,3.21258]
[1754562331465,3.5605,3788.7,3788.6,3.21258]
[1754562331668,3.5605,3788.7,3788.5,0.5278]
[1754562331863,3.5605,3788.9,3788.6,0.52778]
[1754562332062,3.5605,3788.8,3788.6,0.52778]
[1754562332260,3.5605,3788.9,3788.7,0.52777]
[1754562332459,3.5605,3788.8,3788.7,0.52777]
[1754562332965,3.5605,3788.8,3788.7,3.21257]
[1754562333164,0.8518,3789.2,3789.1,3.21252]
[1754562333468,0.8518,3789.4,3789.3,2.6848]
[1754562333966,0.8518,3789.7,3789.6,0.52765]
[1754562334159,3.5605,3789.7,3789.6,0.52765]
[1754562334566,3.5605,3789.7,3789.6,3.21245]
[1754562334766,2.1089,3789.7,3789.6,3.21245]
[1754562335066,3.5605,3789.7,3789.6,2.6848]
[1754562335365,3.5605,3789.7,3789.4,0.52767]
[1754562335555,0.52765,3789.7,3789.4,3.21247]
[1754562335760,3.5605,3789.5,3789.4,0.52767]
[1754562336563,0.52768,3789.5,3789.1,0.52771]
[1754562336764,3.5605,3789.6,3788.8,2.6848]
[1754562336765,3.2078,3789.4,3789.2,0.5277]
[1754562336960,1.4516,3789.3,3788.8,1.3967]
[1754562337163,1.4516,3789.3,3787.5,4.9223535]
[1754562337164,1.31947,3788.7,3787.5,3.5707035]
[1754562337364,19.553,3789.3,3787.1,1.2881]
[1754562337365,2.7087,3787.5,3787.1,1.2881]
[1754562337559,0.8518,3787.2,3787.0,2.6848]
[1754562337766,3.2078,3787.7,3787.5,0.8852]
[1754562337966,4.0596,3787.7,3787.6,2.6848]
[1754562338466,6.7683,3787.7,3787.6,2.6848]
[1754562338660,4.08842,3787.7,3787.6,2.6848]
[1754562339056,0.52792,3787.7,3787.3,1.5999]
[1754562339257,2.7087,3787.6,3787.4,2.6848]
[1754562339567,0.8518,3787.5,3787.4,3.21276]
[1754562340869,3.2078,3787.9,3787.3,4.8077]
[1754562341059,0.52779,3788.6,3788.2,0.52785]
[1754562341262,2.7087,3788.5,3788.3,1.3967]
[1754562341463,3.5605,3788.4,3788.3,2.6848]
[1754562343873,0.8518,3788.4,3788.3,2.6848]
[1754562344075,3.2078,3789.0,3788.7,0.52778]
[1754562344076,2.7087,3788.8,3788.7,0.52778]
[1754562344272,5.9165,3789.0,3788.9,0.52775]
[1754562344576,2.7087,3788.9,3788.8,0.52776]
[1754562344774,3.5605,3788.9,3788.8,0.52776]
[1754562345174,3.5605,3788.9,3788.8,3.21256]
[1754562345374,0.8518,3788.9,3788.8,3.21256]
[1754562345567,0.8518,3788.9,3788.8,4.09776]
[1754562345873,3.2078,3789.0,3788.9,3.57]
[1754562346069,3.2078,3789.0,3788.9,2.6848]
[1754562346070,0.8518,3789.0,3788.9,2.6848]
[1754562346675,0.8518,3789.0,3788.9,3.57]
[1754562347284,0.8518,3789.0,3788.9,2.6848]
[1754562347479,2.3034,3788.9,3788.8,0.52775]
[1754562347674,0.8518,3788.9,3788.8,3.21255]
[1754562347883,0.8518,3788.9,3788.8,4.09775]
[1754562348082,0.8518,3788.9,3788.8,0.52775]
[1754562348378,0.8518,3788.7,3788.5,0.52781]
[1754562348584,0.8518,3788.7,3788.6,2.6848]
[1754562349083,3.5605,3788.7,3788.6,2.6848]
[1754562349779,3.2078,3789.1,3788.9,0.52775]
[1754562349982,0.8518,3789.1,3788.9,1.41295]
[1754562350384,0.8518,3789.1,3789.0,2.6848]
[1754562350776,3.5605,3789.1,3789.0,2.6848]
[1754562350982,3.5605,3789.0,3788.9,0.52774]
[1754562351178,3.5605,3789.0,3788.9,3.21254]
[1754562351382,0.52778,3788.7,3788.5,1.9245]
[1754562351582,3.5605,3788.6,3788.5,1.9245]
[1754562351775,3.5605,3788.6,3788.5,3.2126]
[1754562352886,0.8518,3788.6,3788.5,3.2126]
[1754562353281,0.8518,3788.6,3788.5,4.0978]
[1754562353483,0.8518,3789.0,3788.9,3.21255]
[1754562353685,0.8518,3789.0,3788.9,4.09775]
[1754562354587,3.2078,3789.1,3788.9,4.09775]
[1754562354793,3.2078,3789.1,3789.0,2.6848]
[1754562355087,3.2078,3789.1,3789.0,3.57]
[1754562355480,4.0596,3789.1,3789.0,3.57]
[1754562356082,0.8518,3788.9,3788.6,0.52779]
[1754562356382,3.5605,3788.7,3788.6,0.52778]
[1754562357085,3.5605,3788.7,3788.6,3.21258]
[1754562359583,0.8518,3788.7,3788.6,3.21258]
[1754562359785,0.8518,3788.7,3788.3,0.52783]
[1754562359786,0.52782,3788.5,3788.3,0.52783]
[1754562359978,2.7584,3788.3,3788.2,0.52784]
[1754562360184,3.6648,3788.3,3788.2,0.52784]
[1754562360388,3.6648,3788.3,3788.2,3.29994]
[1754562360588,0.9064,3788.3,3788.2,3.29994]
[1754562361288,3.6648,3788.3,3788.2,3.29994]
[1754562361891,0.9064,3788.3,3788.2,3.29994]
[1754562362188,2.7584,3788.7,3788.6,3.29989]
[1754562362395,0.52774,3789.0,3788.8,0.52775]
[1754562362589,0.9064,3788.8,3788.6,3.29989]
[1754562362787,0.52779,3788.6,3788.5,0.5278]
[1754562362982,0.52779,3788.6,3788.5,0.52781]
[1754562362983,0.9064,3788.6,3788.5,0.52781]
[1754562363188,3.6648,3788.6,3788.5,0.52781]
[1754562363389,3.6648,3788.6,3788.5,3.29991]
[1754562363898,0.9064,3788.6,3788.5,3.29991]
[1754562364593,3.6648,3788.6,3788.5,3.29991]
[1754562364997,0.9064,3788.6,3788.5,3.29991]
[1754562365196,0.9064,3788.6,3788.5,4.19281]
[1754562365896,1.4759,3788.6,3788.5,6.66871]
[1754562366092,2.4387,3788.6,3788.5,5.77581]
[1754562366397,5.1971,3788.6,3788.5,5.77581]
[1754562367496,5.6465,3789.1,3789.0,3.00364]
[1754562367697,9.3067,3789.1,3789.0,5.77574]
[1754562367902,9.3067,3789.1,3789.0,2.41864]
[1754562368701,9.3067,3789.1,3789.0,0.52774]
[1754562368999,5.1925,3789.0,3788.9,0.52774]
[1754562369300,3.2078,3789.1,3788.8,0.52776]
[1754562369301,6.0989,3788.9,3788.8,0.52776]
[1754562369502,6.0989,3788.9,3788.8,5.77576]
[1754562370008,3.3405,3788.9,3788.8,5.77576]
[1754562370305,3.3405,3788.9,3788.3,1.31956]
[1754562370306,2.4341,3788.9,3788.7,0.52777]
[1754562370510,6.0989,3788.8,3788.7,0.52777]
[1754562370803,6.0989,3788.8,3788.7,5.77577]
[1754562371003,2.4387,3788.8,3788.7,5.77577]
[1754562371310,5.9662,3789.1,3789.0,0.52774]
[1754562371311,8.4003,3789.1,3789.0,0.52774]
[1754562372007,9.3067,3789.1,3789.0,5.77574]
[1754562372411,9.3067,3789.1,3789.0,0.52774]
[1754562372800,9.3067,3789.1,3789.0,2.41864]
[1754562373004,6.5483,3789.1,3789.0,5.77574]
[1754562374211,5.6465,3789.1,3789.0,6.66864]
[1754562375114,5.6465,3789.1,3789.0,5.77574]
[1754562375305,9.3067,3789.1,3789.0,5.77574]
[1754562375900,3.2078,3789.1,3789.0,6.66864]
[1754562376108,3.2078,3789.5,3789.4,6.66858]
[1754562376407,4.618,3789.8,3789.7,0.52763]
[1754562376601,6.0989,3789.8,3789.7,0.52763]
[1754562376799,6.0989,3789.8,3789.7,1.40623]
[1754562377003,6.0989,3789.8,3789.7,2.41853]
[1754562377205,6.0989,3789.8,3789.7,3.74493]
[1754562377803,6.0989,3789.8,3789.7,5.19063]
[1754562380013,6.0989,3789.8,3789.7,5.77563]
[1754562382613,3.7773,3790.0,3789.9,3.00351]
[1754562382917,4.6837,3790.0,3789.9,6.66851]
[1754562383218,5.6465,3790.0,3789.9,6.66851]
[1754562383417,4.6837,3790.0,3789.9,6.66851]
[1754562383813,6.5483,3790.0,3789.9,5.77561]
[1754562384209,9.3067,3790.0,3789.9,5.77561]
[1754562384418,4.6837,3790.0,3789.9,5.77561]
[1754562384714,5.6465,3790.0,3789.9,5.77561]
[1754562385215,9.3067,3790.0,3789.9,5.77561]
[1754562387919,5.26765,3790.4,3790.3,0.52756]
[1754562388109,9.3067,3790.4,3790.3,2.41846]
[1754562388312,9.3067,3790.4,3790.3,5.19056]
[1754562388514,6.0989,3790.4,3790.3,5.19056]
[1754562389816,6.1198,3790.4,3790.3,5.74826]
[1754562390015,1.4759,3790.4,3790.3,5.74826]
[1754562390220,1.4759,3790.4,3790.3,6.57846]
[1754562390916,9.1851,3790.8,3790.7,5.6751]
[1754562391919,5.1428,3791.1,3791.0,2.35666]
[1754562392225,5.9773,3791.1,3791.0,5.67506]
[1754562392625,5.9773,3791.1,3791.0,6.50526]
[1754562393030,5.9773,3791.1,3791.0,5.67506]
[1754562395127,5.9773,3791.1,3791.0,5.1476]
[1754562395421,5.9773,3790.7,3790.6,3.0762]
[1754562395627,5.9773,3790.7,3790.6,1.8292]
[1754562396128,5.9773,3790.1,3790.0,5.1476]
[1754562396425,0.8345,3790.1,3790.0,5.9778]
[1754562396620,0.5499,3790.5,3790.4,5.1476]
[1754562396823,0.5499,3790.5,3790.4,5.9778]
[1754562397022,3.6268,3790.5,3790.1,2.7448]
[1754562397230,5.9773,3790.2,3790.1,5.1476]
[1754562397532,5.9773,3790.2,3790.1,5.67518]
[1754562397724,3.2078,3790.5,3790.3,0.52754]
[1754562397921,5.9773,3790.4,3790.3,2.93034]
[1754562398327,5.9773,3790.4,3790.3,1.8292]
[1754562398529,3.73534,3790.5,3790.1,2.91558]
[1754562398530,5.9773,3790.2,3790.1,2.91558]
[1754562398828,5.9773,3790.2,3790.1,1.41778]
[1754562399029,5.9773,3790.2,3790.1,1.8292]
[1754562399244,5.9773,3789.9,3789.8,8.41603]
[1754562399526,5.9773,3789.9,3789.8,10.48743]
[1754562400127,5.9773,3789.9,3789.8,5.505]
[1754562400325,5.9773,3789.9,3789.8,1.6044]
[1754562400638,5.9773,3789.9,3789.8,6.752]
[1754562401026,0.8345,3789.9,3789.8,7.5822]
[1754562401224,4.5922,3790.1,3790.0,5.9778]
[1754562401628,1.3844,3790.4,3790.3,4.574]
[1754562401928,3.2078,3790.7,3790.6,5.1476]
[1754562402231,3.2078,3790.7,3790.6,5.9778]
[1754562402433,4.0423,3790.7,3790.6,5.9778]
[1754562402626,4.0423,3790.7,3790.6,6.50532]
[1754562403026,4.5922,3790.7,3790.6,6.50532]
[1754562403530,3.2078,3790.7,3790.6,6.50532]
[1754562404126,4.0423,3790.7,3790.6,6.50532]
[1754562404728,4.5922,3790.7,3790.6,6.50532]
[1754562404927,9.1851,3790.7,3790.6,5.67512]
[1754562405127,5.9773,3790.6,3790.5,0.52752]
[1754562405424,8.3506,3790.7,3790.6,0.52751]
[1754562405824,8.3506,3790.7,3790.6,5.67511]
[1754562406124,6.4058,3790.7,3790.6,6.50531]
[1754562407232,9.1851,3790.7,3790.6,2.4028]
[1754562407431,5.9773,3790.5,3790.4,0.52753]
[1754562407629,5.9773,3790.5,3790.4,5.67513]
[1754562407830,1.3844,3790.5,3790.4,5.67513]
[1754562408133,5.9773,3790.5,3790.4,5.67513]
[1754562408525,8.3376,3790.7,3790.6,5.67512]
[1754562408830,9.1851,3790.7,3790.6,5.67512]
[1754562409227,6.4058,3790.7,3790.6,5.67512]
[1754562409430,0.8345,3790.7,3790.6,6.50532]
[1754562409632,3.3292,3791.0,3790.9,2.93027]
[1754562409827,1.3844,3791.0,3790.9,5.67507]
[1754562410029,1.3844,3791.0,3790.9,6.50527]
[1754562410735,0.8345,3791.0,3790.9,6.50527]
[1754562411033,4.5922,3791.2,3791.1,5.67505]
[1754562411231,0.8345,3791.8,3791.7,0.52736]
[1754562411434,6.8216,3792.7,3792.6,4.574]
[1754562411732,4.5922,3792.7,3792.6,5.1476]
[1754562411927,9.1851,3792.7,3792.6,5.1476]
[1754562412333,5.5583,3792.7,3792.6,5.1476]
[1754562412535,9.1851,3792.7,3792.5,0.52724]
[1754562412730,5.9773,3792.6,3792.5,0.52724]
[1754562413034,5.9773,3792.6,3792.5,5.67484]
[1754562413425,0.8345,3792.6,3792.5,5.67484]
[1754562413631,5.9773,3792.6,3792.5,0.52725]
[1754562413830,5.9773,3792.6,3792.0,1.31831]
[1754562413831,5.9773,3792.3,3792.1,0.52729]
[1754562414131,5.9773,3792.2,3792.1,2.35649]
[1754562414333,5.9773,3792.2,3792.1,5.67489]
[1754562415132,5.9773,3792.2,3792.1,0.52729]
[1754562415336,5.9773,3792.2,3792.1,5.67489]
[1754562415530,9.1851,3792.7,3792.6,0.52724]
[1754562418736,9.1851,3792.7,3792.6,2.13374]
[1754562418943,9.1851,3792.7,3792.6,3.4357]
[1754562419240,4.0396,3792.7,3792.6,7.5266]
[1754562419736,4.6411,3792.7,3792.6,7.5266]
[1754562420439,9.70963,3792.7,3792.6,6.6601]
[1754562420631,9.1824,3792.7,3792.6,3.4357]
[1754562421134,9.1824,3792.7,3792.6,1.6065]
[1754562421335,2.9161,3792.0,3791.7,0.52736]
[1754562421534,3.7987,3791.7,3791.6,5.51688]
[1754562421840,2.3984,3791.7,3791.6,2.88788]
[1754562422041,1.5666,3791.7,3791.6,6.40518]
[1754562422236,0.52733,3792.0,3791.4,3.5173]
[1754562422443,3.2078,3792.2,3792.1,5.8778]
[1754562422739,3.8093,3792.2,3792.1,5.8778]
[1754562422937,3.2078,3792.2,3792.1,5.8778]
[1754562423337,8.53,3792.2,3792.1,2.3605]
[1754562423540,5.3222,3791.9,3791.8,2.8004]
[1754562423842,2.4063,3791.4,3791.3,2.662]
[1754562424036,5.3222,3791.4,3791.3,1.4058]
[1754562425040,5.3222,3791.4,3791.3,3.6167]
[1754562425342,5.3222,3791.4,3791.3,5.8778]
[1754562425541,0.52742,3791.3,3790.8,3.5173]
[1754562425743,5.3222,3791.2,3791.1,2.3605]
[1754562426047,5.3222,3791.2,3791.1,0.827]
[1754562426632,2.4063,3791.0,3790.9,2.2611]
[1754562426841,5.3222,3790.8,3790.2,6.7251]
[1754562427045,1.5666,3790.3,3790.2,6.09587]
[1754562427336,4.4825,3790.3,3790.2,6.09587]
[1754562427534,5.3222,3790.7,3790.6,1.93332]
[1754562427735,5.3222,3790.7,3790.6,6.40532]
[1754562427932,5.3222,3790.7,3790.6,5.8778]
[1754562428948,1.5666,3790.7,3790.6,5.8778]
[1754562430947,1.5666,3790.7,3790.2,3.2078]
[1754562430948,0.6015,3791.1,3791.0,5.8778]
[1754562431248,3.8093,3791.2,3791.1,6.40525]
[1754562431646,3.2078,3791.2,3791.1,6.40525]
[1754562431840,3.2078,3791.2,3791.1,5.8778]
[1754562432046,3.8093,3791.2,3791.1,5.8778]
[1754562432548,0.6015,3791.2,3791.1,5.8778]
[1754562433847,5.3222,3791.2,3791.1,5.8778]
[1754562434747,3.7987,3791.2,3791.1,5.8778]
[1754562434945,3.5174,3791.1,3791.0,0.52745]
[1754562435144,3.9219,3791.1,3791.0,5.01065]
[1754562435444,5.3222,3791.5,3791.4,2.88791]
[1754562435645,3.2078,3791.6,3791.4,3.75441]
[1754562435951,3.8093,3791.6,3791.5,5.8778]
[1754562436149,0.6015,3791.6,3791.5,5.8778]
[1754562436449,3.7987,3791.6,3791.5,5.8778]
[1754562436750,4.7744,3792.1,3792.0,0.5788]
[1754562436950,4.7744,3792.1,3792.0,5.8778]
[1754562437153,4.7744,3792.1,3792.0,6.40512]
[1754562437348,3.8093,3792.1,3792.0,6.40512]
[1754562437645,3.2078,3792.1,3792.0,6.40512]
[1754562438450,4.7744,3792.1,3792.0,6.40512]
[1754562438651,8.53,3792.1,3792.0,1.35432]
[1754562438850,8.53,3792.1,3792.0,6.40512]
[1754562439150,3.8093,3792.1,3792.0,6.40512]
[1754562439453,3.2078,3792.1,3792.0,6.40512]
[1754562440250,7.6903,3792.1,3792.0,5.8778]
[1754562440451,8.53,3792.1,3792.0,0.21425005]
[1754562440648,0.52734,3791.9,3791.6,4.6216]
[1754562440945,5.3222,3791.5,3791.4,3.6167]
[1754562441153,5.3222,3791.5,3791.4,3.83101053]
[1754562441450,1.5666,3791.5,3791.4,6.09211053]
[1754562441748,3.8093,3791.7,3791.6,2.3605]
[1754562442047,1.31817,3792.5,3791.9,0.827]
[1754562442048,2.93363,3792.0,3791.9,0.827]
[1754562442243,3.8889,3791.6,3791.5,5.0113]
[1754562442442,3.2078,3792.1,3791.5,5.0113]
[1754562442443,5.3222,3791.9,3791.8,5.8778]
[1754562442644,5.3222,3791.9,3791.8,3.6167]
[1754562443051,1.5666,3791.9,3791.8,5.8778]
[1754562443352,0.6015,3791.9,3791.8,5.8778]
[1754562443844,3.8093,3792.1,3792.0,2.3605]
[1754562444050,8.53,3792.1,3792.0,5.8778]
[1754562444446,3.2078,3792.1,3792.0,5.8778]
[1754562444646,3.8093,3792.1,3792.0,5.8778]
[1754562444851,3.2078,3792.1,3792.0,5.8778]
[1754562445047,0.8318,3792.7,3792.4,1.10607]
[1754562445048,3.2078,3792.5,3792.4,1.10607]
[1754562445255,0.6015,3792.5,3792.4,6.40507]
[1754562446153,1.4003,3792.9,3792.8,0.52721]
[1754562446455,9.53,3793.0,3792.9,5.8778]
[1754562446654,1.0,3793.0,3792.9,5.8778]
[1754562447156,2.23013637,3793.8,3793.7,5.8778]
[1754562447452,3.0901,3792.9,3792.8,0.827]
[1754562447648,2.24,3793.1,3792.2,3.2078]
[1754562447848,2.2321,3793.0,3792.3,3.73154303]
[1754562448143,2.2321,3793.0,3792.2,3.2078]
[1754562448144,3.2078,3793.4,3793.1,0.52716]
[1754562448348,3.2078,3793.4,3793.2,1.4058]
[1754562448556,2.4063,3793.3,3793.2,2.3605]
[1754562448754,2.4063,3793.3,3792.2,3.2078]
[1754562448755,0.52716,3793.2,3792.2,3.2078]
[1754562448955,4.7682,3792.7,3792.6,1.93303]
[1754562449159,3.0289,3792.7,3792.6,6.61023]
[1754562449351,5.4891,3792.7,3792.6,4.5893]
[1754562449658,5.4782,3792.1,3792.0,3.6751]
[1754562449852,3.0462,3792.1,3792.0,0.21432781]
[1754562450153,3.2078,3792.2,3791.7,1.82416]
[1754562450350,3.0462,3792.1,3791.9,2.72823]
[1754562450550,2.3619,3792.1,3792.0,3.6946]
[1754562450751,1.4623,3792.1,3792.0,3.6946]
[1754562450951,3.2078,3792.2,3792.1,0.52731]
[1754562451257,3.2078,3792.2,3792.1,3.6946]
[1754562451457,1.4623,3792.2,3792.1,3.6946]
[1754562451756,1.5839,3792.5,3791.9,2.7905]
[1754562451954,3.2078,3792.6,3792.0,0.9041]
[1754562452155,3.2078,3792.6,3792.5,3.6946]
[1754562452958,3.0462,3793.1,3792.4,0.9041]
[1754562453154,3.0462,3793.0,3792.8,0.5272]
[1754562453358,1.5839,3793.0,3792.9,1.2968]
[1754562453559,3.73496,3793.2,3793.0,0.52719]
[1754562453755,3.2078,3793.2,3793.1,2.92497]
[1754562453962,2.3619,3794.0,3793.7,1.4937]
[1754562454260,3.0462,3793.9,3793.8,2.2009]
[1754562454461,3.0462,3793.9,3793.8,3.6946]
[1754562454757,3.2078,3794.1,3792.9,1.31799]
[1754562454962,3.0462,3793.6,3793.4,1.2968]
[1754562455155,3.0462,3793.5,3793.4,1.82393]
[1754562455354,3.0462,3793.5,3793.4,1.2968]
[1754562455556,3.0462,3793.6,3793.4,1.82393]
[1754562455855,3.2078,3793.7,3793.6,4.2217]
[1754562456051,3.0462,3794.0,3793.9,3.6946]